bitfinex-derivatives/quotes_SOLF0:USTF0_20220108
["timestamp","ask_amount","ask_price","bid_price","bid_amount"]
[1641671220774,5.24947002,134.01,133.95,14.457]
[1641671221176,7.46268657,134.03,133.95,14.457]
[1641671221177,7.46268657,134.03,133.97,27.66479]
[1641671221375,7.46268657,134.03,133.98,1.865]
[1641671221576,7.46268657,134.03,133.98,5.865]
[1641671221775,40.37527621,134.06,133.98,5.865]
[1641671221976,2.31932334,134.02,133.99,4.0]
[1641671222176,5.24947002,134.06,134.01,4.0]
[1641671222376,5.26317658,134.07,134.02,1.865]
[1641671222579,5.26317658,134.07,134.06,4.0]
[1641671222775,7.658e-05,134.07,134.06,1.864]
[1641671222975,7.658e-05,134.07,134.06,7.516]
[1641671223175,7.658e-05,134.07,134.06,5.652]
[1641671223376,15.75686477,134.1,134.06,5.652]
[1641671223576,2.20311976,134.09,134.06,8.49392521]
[1641671223980,2.20311976,134.12,134.07,4.23717685]
[1641671224380,2.20311976,134.14,134.07,4.23717685]
[1641671224577,2.20311976,134.14,134.07,8.23717685]
[1641671225178,2.20311976,134.14,134.11,27.66479]
[1641671225778,7.45406433,134.18,134.11,29.52779]
[1641671225978,7.45406433,134.18,134.11,27.66479]
[1641671226178,4.0,134.13,134.07,1.863]
[1641671226380,4.0,134.13,134.04,1.863]
[1641671226579,2.20311976,134.12,134.04,1.863]
[1641671226781,7.45906836,134.09,134.04,1.863]
[1641671226980,4.0,134.07,134.03,15.75686477]
[1641671227181,4.0,134.07,134.0,42.0528918]
[1641671227182,27.66479,134.05,134.0,42.0528918]
[1641671227379,7.46185129,134.04,133.98,15.6903163]
[1641671227582,27.66479,134.05,133.98,15.6903163]
[1641671227780,2.20311976,134.06,133.99,1.865]
[1641671228381,2.20311976,134.04,133.99,6.10383733]
[1641671228581,2.20311976,134.04,133.99,4.23883733]
[1641671228781,1.976e-05,134.04,134.01,4.0]
[1641671228981,7.45795577,134.11,134.02,5.865]
[1641671229182,73.9178,134.15,134.05,27.66479]
[1641671229384,4.0,134.15,134.05,27.66479]
[1641671229783,7.45684352,134.13,134.05,27.66479]
[1641671230182,0.8475266,134.12,134.06,4.237633]
[1641671230682,0.8475266,134.12,134.06,6.101633]
[1641671231083,0.8475266,134.14,134.07,4.237633]
[1641671231483,4.8475266,134.14,134.07,4.237633]
[1641671231682,7.4573996,134.12,134.07,4.237633]
[1641671231884,7.4573996,134.12,134.05,27.66479]
[1641671232282,7.4573996,134.12,134.06,4.23754296]
[1641671232483,0.8475266,134.11,134.06,4.23754296]
[1641671233383,28.5123166,134.13,134.06,4.23754296]
[1641671233783,0.8475266,134.12,134.06,4.23754296]
[1641671234283,0.8475266,134.12,134.07,4.0]
[1641671234486,0.8475266,134.12,134.08,5.864]
[1641671234784,0.8475266,134.15,134.09,4.23754296]
[1641671235084,0.8475266,134.15,134.1,1.864]
[1641671236686,8.30159093,134.18,134.11,4.23604262]
[1641671236886,8.30159093,134.18,134.12,1.863]
[1641671237187,0.8475266,134.17,134.13,27.66479]
[1641671237385,0.8475266,134.17,134.14,1.863]
[1641671237586,7.45184247,134.22,134.14,10.37]
[1641671238187,7.45267551,134.21,134.14,10.37]
[1641671239186,27.66479,134.19,134.14,10.37]
[1641671239386,27.66479,134.19,134.14,8.507]
[1641671239588,7.45267551,134.21,134.14,8.507]
[1641671240690,7.45267551,134.21,134.15,1.863]
[1641671240888,27.66479,134.23,134.15,1.863]
[1641671241690,7.45267551,134.21,134.15,1.863]
[1641671241890,11.45267551,134.21,134.14,36.17179]
[1641671242089,4.0,134.2,134.14,8.507]
[1641671242791,13.41352956,134.21,134.13,4.0]
[1641671242990,27.66479,134.24,134.17,4.0]
[1641671243191,114.2289918,134.28,134.2,4.0]
[1641671243390,42.0528918,134.28,134.2,4.0]
[1641671243588,42.0528918,134.28,134.19,27.66479]
[1641671243790,57.46216783,134.29,134.22,4.0]
[1641671243990,57.46216783,134.29,134.23,1.862]
[1641671244293,4.0,134.24,134.2,1.862]
[1641671244490,4.0,134.24,134.16,1.862]
[1641671244690,7.45212013,134.22,134.13,1.862]
[1641671244896,7.45406433,134.18,134.11,1.863]
[1641671245091,9.96039693,134.22,134.11,1.863]
[1641671245293,31.66479,134.18,134.11,1.863]
[1641671245491,7.45628751,134.14,134.08,1.863]
[1641671245692,5.96273184,134.17,134.05,34.0528918]
[1641671245991,7.45990302,134.08,134.03,21.713]
[1641671246991,7.45990302,134.08,134.04,4.23816524]
[1641671247394,27.66479,134.07,134.04,4.23816524]
[1641671248492,31.66479,134.07,134.04,4.23816524]
[1641671248692,11.46129453,134.05,133.96,1.864]
[1641671248893,4.0,134.03,133.96,1.864]
[1641671249092,7.46296504,134.02,133.92,1.865]
[1641671249294,27.66479,134.0,133.92,1.865]
[1641671249895,39.12775504,134.02,133.92,1.865]
[1641671250196,39.12775504,134.02,133.93,7.07031498]
[1641671250695,47.66479,134.02,133.94,4.23989617]
[1641671250897,11.46714456,133.95,133.85,1.865]
[1641671251095,4.0,133.94,133.85,1.865]
[1641671251295,5.972203,133.96,133.86,31.66479]
[1641671251296,41.10358002,133.96,133.86,31.66479]
[1641671251495,4.0,134.0,133.87,5.866]
[1641671251695,29.86188877,134.0,133.88,4.0]
[1641671251895,4.0,133.99,133.89,1.866]
[1641671252098,7.46547219,133.98,133.89,4.24089953]
[1641671252296,11.46547219,133.98,133.89,4.24089953]
[1641671252496,4.0,133.97,133.89,4.24089953]
[1641671252695,6.96659046,133.97,133.88,4.24089953]
[1641671252896,7.46714456,133.95,133.88,4.24089953]
[1641671253295,35.13193456,133.95,133.88,4.24089953]
[1641671253495,2.96659046,133.94,133.88,4.24089953]
[1641671254096,2.96659046,133.93,133.88,4.24089953]
[1641671254497,2.96659046,133.92,133.88,4.24089953]
[1641671254901,2.96659046,133.91,133.88,4.24089953]
[1641671255498,35.13193456,133.95,133.88,4.24089953]
[1641671255698,4.0,133.94,133.88,4.24089953]
[1641671255898,4.0,133.93,133.88,4.24089953]
[1641671256099,4.0,133.89,133.84,27.66479]
[1641671256299,5.97491046,133.9,133.84,27.66479]
[1641671256498,4.0,133.89,133.84,27.66479]
[1641671256699,5.522,133.89,133.84,27.66479]
[1641671256899,7.46937556,133.91,133.84,27.66479]
[1641671257099,7.46742337,133.94,133.85,1.867]
[1641671257300,3.39018481,133.9,133.85,6.10920467]
[1641671257701,4.0,133.9,133.86,4.24220467]
[1641671258098,3.39018481,133.89,133.86,4.24220467]
[1641671258599,3.39018481,133.89,133.83,4.24220467]
[1641671259200,7.46798103,133.93,133.83,4.24220467]
[1641671259401,7.46658702,133.96,133.86,27.66479]
[1641671260305,12.34588124,133.95,133.87,4.24242475]
[1641671260502,8.34588124,133.95,133.87,8.24242475]
[1641671260703,2.37317708,133.95,133.87,8.24242475]
[1641671260902,2.37317708,133.94,133.88,1.866]
[1641671261305,2.37317708,133.97,133.89,31.90721475]
[1641671261705,27.66479,134.02,133.96,4.0]
[1641671261906,11.16129901,134.06,133.98,4.0]
[1641671261907,7.16129901,134.06,133.98,4.0]
[1641671262503,9.96556895,134.11,133.99,5.865]
[1641671262706,9.96556895,134.11,133.99,1.865]
[1641671262906,7.46101619,134.07,133.99,1.865]
[1641671263105,7.46101619,134.07,134.0,4.239248]
[1641671263505,1.65928308,134.06,134.0,4.239248]
[1641671264106,1.65928308,134.06,134.0,8.239248]
[1641671264304,1.65928308,134.06,134.01,1.865]
[1641671264505,1.65928308,134.07,134.01,10.104248]
[1641671264904,1.65928308,134.07,134.02,4.239248]
[1641671265106,1.65928308,134.07,134.03,1.865]
[1641671265608,1.65928308,134.07,134.02,4.239248]
[1641671265806,1.65928308,134.07,133.99,27.66479]
[1641671266006,1.65928308,134.07,133.99,31.66479]
[1641671266210,1.65928308,134.07,134.0,1.865]
[1641671266408,1.65928308,134.1,134.05,4.0]
[1641671266608,1.65928308,134.1,134.06,1.864]
[1641671266808,1.65928308,134.1,134.05,1.864]
[1641671267010,1.65928308,134.13,134.06,4.23885164]
[1641671267307,7.45489787,134.18,134.07,1.864]
[1641671267308,7.45600954,134.16,134.07,1.864]
[1641671267508,7.45600954,134.16,134.08,27.66479]
[1641671267907,1.65928308,134.15,134.08,27.66479]
[1641671270112,1.65928308,134.15,134.08,31.66479]
[1641671270310,1.65928308,134.15,134.1,4.0]
[1641671270712,1.65928308,134.15,134.11,1.863]
[1641671271112,1.65928308,134.15,134.11,5.863]
[1641671271311,7.45212013,134.23,134.11,1.863]
[1641671271512,41.0768465,134.23,134.13,27.66479]
[1641671271913,35.11691013,134.23,134.13,31.66479]
[1641671272111,27.66479,134.25,134.14,5.863]
[1641671272315,7.45073203,134.25,134.14,5.863]
[1641671272514,15.67504187,134.28,134.18,4.0]
[1641671272713,15.67504187,134.28,134.2,4.0]
[1641671272914,15.67504187,134.28,134.21,1.862]
[1641671273315,15.67504187,134.28,134.21,4.0]
[1641671273513,15.67504187,134.28,134.24,27.66479]
[1641671273715,29.79737783,134.31,134.24,34.89079]
[1641671274114,15.67504187,134.34,134.24,34.89079]
[1641671274314,15.67504187,134.34,134.26,4.0]
[1641671274519,15.67504187,134.34,134.27,5.861]
[1641671274916,15.67504187,134.34,134.27,1.861]
[1641671275116,7.44573918,134.34,134.27,1.861]
[1641671275516,7.44573918,134.34,134.28,27.66479]
[1641671275920,4.0,134.32,134.25,1.861]
[1641671276118,7.44934446,134.28,134.18,1.861]
[1641671276317,7.44934446,134.28,134.15,1.862]
[1641671276517,7.44934446,134.28,134.15,5.862]
[1641671276919,7.44934446,134.28,134.18,4.0]
[1641671277120,7.44823477,134.3,134.19,5.862]
[1641671277320,7.44601638,134.34,134.24,4.0]
[1641671277520,7.44601638,134.34,134.26,27.66479]
[1641671277720,7.44601638,134.34,134.27,1.861]
[1641671278822,7.44601638,134.34,134.26,27.66479]
[1641671279021,4.0,134.29,134.24,27.66479]
[1641671279222,7.44934446,134.28,134.17,1.861]
[1641671279423,35.11413446,134.28,134.2,27.66479]
[1641671279622,7.44934446,134.28,134.21,1.862]
[1641671279823,4.0,134.29,134.19,1.862]
[1641671280023,7.45128721,134.24,134.18,4.23321175]
[1641671280221,35.76354553,134.27,134.18,4.23321175]
[1641671280222,9.95842005,134.27,134.18,4.23321175]
[1641671280423,7.45295323,134.21,134.12,1.862]
[1641671280622,7.45045448,134.26,134.16,4.0]
[1641671280823,27.66479,134.3,134.18,4.0]
[1641671281024,15.67504187,134.32,134.19,5.862]
[1641671281227,1.69472565,134.29,134.2,4.16727435]
[1641671281424,15.67504187,134.32,134.23,27.66479]
[1641671281624,17.36976752,134.32,134.23,29.97006435]
[1641671281825,1.69472565,134.37,134.26,2.30527435]
[1641671282026,1.69472565,134.37,134.27,1.861]
[1641671282226,1.69472565,134.37,134.27,2.30527435]
[1641671282429,7.44296826,134.39,134.28,4.16627435]
[1641671282626,4.0,134.39,134.28,1.861]
[1641671282828,1.69472565,134.31,134.24,1.861]
[1641671283028,1.69472565,134.3,134.24,1.861]
[1641671283228,1.69472565,134.3,134.23,29.52579]
[1641671283430,1.69472565,134.3,134.23,27.66479]
[1641671283631,27.66479,134.32,134.21,29.52579]
[1641671283632,7.449067,134.28,134.21,27.66479]
[1641671283835,1.69472565,134.23,134.18,1.861]
[1641671284031,1.69472565,134.21,134.15,1.862]
[1641671284231,1.69472565,134.17,134.12,1.863]
[1641671284832,9.15323768,134.13,134.06,15.67504187]
[1641671285033,5.69472565,134.07,134.06,15.67504187]
[1641671285333,19.12413385,134.07,133.98,7.67504187]
[1641671285539,1.69472565,133.99,133.98,7.67504187]
[1641671285734,1.69472565,134.0,133.98,7.67504187]
[1641671285934,1.69472565,134.03,133.98,7.67504187]
[1641671286337,1.69472565,134.03,133.96,1.865]
[1641671286735,2.00914527,134.02,133.95,1.865]
[1641671286936,1.69472565,134.0,133.95,1.865]
[1641671287140,1.69472565,133.96,133.94,27.66479]
[1641671287335,1.69472565,133.95,133.94,27.66479]
[1641671287635,3.70387092,133.95,133.9,27.66479]
[1641671287837,1.69472565,133.92,133.9,27.66479]
[1641671288135,3.70387092,133.94,133.9,27.66479]
[1641671288335,2.00914527,133.94,133.9,27.66479]
[1641671288537,1.69472565,133.92,133.9,27.66479]
[1641671288735,1.69472565,133.94,133.9,27.66479]
[1641671288938,7.46658702,133.97,133.9,27.66479]
[1641671289135,1.69472565,133.94,133.9,27.66479]
[1641671290037,1.69472565,133.91,133.9,27.66479]
[1641671290238,5.69472565,133.91,133.87,27.66479]
[1641671290436,6.323,133.91,133.87,27.66479]
[1641671290636,1.69472565,133.88,133.87,27.66479]
[1641671291236,2.21238103,133.88,133.87,27.66479]
[1641671291438,8.103e-05,133.88,133.87,27.66479]
[1641671291836,1.69472565,133.9,133.87,27.66479]
[1641671292236,4.0,133.93,133.87,27.66479]
[1641671292638,1.5495317,133.92,133.87,27.66479]
[1641671293040,1.69472565,133.88,133.87,27.66479]
[1641671293643,3.24425735,133.88,133.87,27.66479]
[1641671294242,1.5495317,133.88,133.87,27.66479]
[1641671294643,1.69472565,133.92,133.87,27.66479]
[1641671294845,1.69472565,133.9,133.88,1.867]
[1641671295045,4.0,133.94,133.88,1.867]
[1641671295246,1.69472565,133.89,133.87,27.66479]
[1641671295846,1.69472565,133.91,133.87,27.66479]
[1641671296046,27.66479,133.98,133.87,29.97006435]
[1641671296247,1.69472565,133.95,133.88,1.866]
[1641671296648,1.54867078,133.94,133.88,1.866]
[1641671296845,1.54867078,133.94,133.88,4.17127435]
[1641671297045,1.54867078,133.94,133.88,1.866]
[1641671297446,1.69472565,133.93,133.88,1.866]
[1641671297648,1.69472565,133.93,133.91,27.66479]
[1641671297850,1.69472565,133.93,133.88,1.866]
[1641671298051,4.0,133.96,133.88,1.866]
[1641671298249,1.69472565,133.9,133.88,1.866]
[1641671298449,1.69472565,133.9,133.87,27.66479]
[1641671298646,4.0,133.96,133.87,27.66479]
[1641671299048,1.69472565,133.9,133.87,27.66479]
[1641671299252,1.69472565,133.91,133.87,27.66479]
[1641671299449,1.69472565,133.88,133.87,27.66479]
[1641671300053,9.97291035,133.94,133.87,27.66479]
[1641671300254,1.69472565,133.91,133.87,27.66479]
[1641671300453,1.69472565,133.92,133.88,4.24191393]
[1641671300655,1.54924137,133.93,133.88,4.24191393]
[1641671300853,1.69472565,133.91,133.88,4.24191393]
[1641671301254,1.69472565,133.89,133.88,4.24191393]
[1641671301757,5.69472565,133.89,133.88,4.24191393]
[1641671302156,7.24151679,133.89,133.88,4.24191393]
[1641671302454,7.24151679,133.89,133.82,4.24191393]
[1641671302655,1.69472565,133.83,133.82,4.24191393]
[1641671303757,1.69472565,133.83,133.79,4.24191393]
[1641671303958,4.0,133.84,133.79,4.24191393]
[1641671304158,4.0,133.84,133.78,4.24191393]
[1641671304159,1.69472565,133.8,133.78,4.24191393]
[1641671304360,1.69472565,133.79,133.78,4.24191393]
[1641671306764,1.69472565,133.8,133.78,4.24191393]
[1641671306969,1.69472565,133.81,133.78,4.24191393]
[1641671307165,1.69472565,133.8,133.78,4.24191393]
[1641671307365,1.69472565,133.79,133.78,4.24191393]
[1641671307765,35.13835227,133.84,133.78,4.24191393]
[1641671307966,1.69472565,133.8,133.78,4.24191393]
[1641671308169,1.69472565,133.79,133.78,4.24191393]
[1641671308565,35.13835227,133.84,133.78,4.24191393]
[1641671308768,27.66479,133.84,133.78,6.54718828]
[1641671308965,5.97697223,133.85,133.78,6.54718828]
[1641671308966,1.5479766,133.83,133.8,2.30527435]
[1641671309165,7.46937556,133.92,133.82,2.30527435]
[1641671309367,1.69472565,133.89,133.82,2.30527435]
[1641671309567,1.69472565,133.89,133.84,27.66479]
[1641671309764,13.44326195,133.92,133.84,27.66479]
[1641671310165,1.69472565,133.88,133.84,27.66479]
[1641671310566,1.69472565,133.88,133.85,4.24315306]
[1641671310967,1.08280008,133.87,133.85,4.24315306]
[1641671311168,41.08746314,133.99,133.86,2.30527435]
[1641671311169,7.46658702,133.97,133.86,2.30527435]
[1641671311369,1.0823974,133.9,133.88,2.30527435]
[1641671311568,7.46658702,133.97,133.89,27.66479]
[1641671311770,1.69472565,133.96,133.89,29.53079]
[1641671312170,7.46658702,133.97,133.89,29.53079]
[1641671312571,1.69472565,133.94,133.89,29.53079]
[1641671312871,0.8483799,133.96,133.9,4.24189951]
[1641671313070,1.69472565,133.93,133.9,4.24189951]
[1641671313270,0.8483799,133.93,133.9,4.24189951]
[1641671313470,2.54310555,133.93,133.9,4.24189951]
[1641671313671,0.8483799,133.93,133.9,4.24189951]
[1641671313871,0.8483799,133.93,133.92,2.30527435]
[1641671314071,5.16413463,134.01,133.92,2.30527435]
[1641671314373,5.16413463,134.0,133.94,2.30527435]
[1641671314572,1.69472565,133.99,133.95,1.866]
[1641671314972,1.69472565,133.99,133.92,2.30527435]
[1641671314973,1.69472565,133.99,133.93,1.866]
[1641671315374,1.69472565,133.97,133.92,1.866]
[1641671315588,0.84816333,133.98,133.94,31.90560663]
[1641671315974,1.69472565,133.98,133.95,4.24081663]
[1641671316174,1.69472565,133.96,133.95,4.24081663]
[1641671316378,1.69472565,133.96,133.9,15.76241269]
[1641671316574,5.69472565,133.91,133.87,41.57102114]
[1641671316773,1.69472565,133.88,133.83,57.16452711]
[1641671316973,6.82301391,133.9,133.83,57.16452711]
[1641671317174,1.69472565,133.87,133.81,2.30527435]
[1641671317375,11.46909661,133.92,133.79,103.80687852]
[1641671317376,0.84816333,133.89,133.79,4.17127435]
[1641671317574,1.69472565,133.85,133.81,27.66479]
[1641671317976,4.0,133.88,133.81,27.66479]
[1641671318274,1.69472565,133.82,133.79,27.66479]
[1641671318474,1.69472565,133.8,133.79,27.66479]
[1641671318874,11.47244536,133.86,133.79,27.66479]
[1641671319075,1.69472565,133.8,133.79,27.66479]
[1641671319478,0.84893995,133.85,133.79,27.66479]
[1641671319677,39.13723536,133.86,133.79,27.66479]
[1641671319879,1.69472565,133.87,133.81,2.30527435]
[1641671320079,1.69472565,133.9,133.81,2.30527435]
[1641671320278,0.84881496,133.85,133.81,2.30527435]
[1641671320478,0.84881496,133.85,133.82,4.17327435]
[1641671320679,0.84881496,133.85,133.83,2.30527435]
[1641671320879,0.84881496,133.89,133.84,2.30527435]
[1641671321078,0.84881496,133.89,133.86,2.30527435]
[1641671321278,2.54354061,133.93,133.86,2.30527435]
[1641671321479,1.69472565,133.88,133.87,1.867]
[1641671321679,1.69472565,133.88,133.85,27.66479]
[1641671321879,1.69472565,133.89,133.85,27.66479]
[1641671322082,0.84881496,133.87,133.85,27.66479]
[1641671322280,1.69472565,133.86,133.85,27.66479]
[1641671322679,1.69472565,133.86,133.8,20.57901223]
[1641671322680,1.69472565,133.86,133.8,18.27373788]
[1641671322979,1.69472565,133.82,133.8,16.40673788]
[1641671323179,0.84881496,133.86,133.8,16.40673788]
[1641671323380,2.54354061,133.86,133.8,2.30527435]
[1641671323584,2.54354061,133.86,133.82,27.66479]
[1641671323783,0.84881496,133.85,133.82,27.66479]
[1641671323983,1.69472565,133.84,133.81,1.867]
[1641671324182,0.84881496,133.85,133.79,29.97006435]
[1641671324381,1.69472565,133.84,133.8,1.868]
[1641671324584,1.69472565,133.82,133.8,1.868]
[1641671324883,1.69472565,133.81,133.8,1.868]
[1641671325084,1.69472565,133.81,133.79,27.66479]
[1641671325283,4.84881496,133.87,133.79,27.66479]
[1641671325483,11.47160789,133.88,133.79,27.66479]
[1641671325684,1.69472565,133.82,133.79,27.66479]
[1641671325883,8.78672565,133.82,133.79,27.66479]
[1641671326285,7.092,133.82,133.79,27.66479]
[1641671326486,1.69472565,133.81,133.79,27.66479]
[1641671327284,1.69472565,133.8,133.79,27.66479]
[1641671327484,1.69472565,133.8,133.76,27.66479]
[1641671328286,1.69472565,133.78,133.76,27.66479]
[1641671328785,7.092,133.82,133.76,44.07988036]
[1641671328986,7.092,133.82,133.78,2.30527435]
[1641671329185,35.05056619,133.91,133.81,2.30527435]
[1641671329186,1.69472565,133.89,133.81,2.30527435]
[1641671329387,1.69472565,133.87,133.82,1.867]
[1641671329587,1.69472565,133.89,133.85,27.66479]
[1641671330187,4.0,133.92,133.85,27.66479]
[1641671330386,0.84860317,133.88,133.85,27.66479]
[1641671330586,1.69472565,133.86,133.83,29.53179]
[1641671330788,1.69472565,133.84,133.79,1.867]
[1641671330987,1.69472565,133.82,133.77,63.16590396]
[1641671331387,1.69472565,133.78,133.77,63.16590396]
[1641671331587,31.66479,133.84,133.77,63.16590396]
[1641671331887,31.66479,133.84,133.76,27.66479]
[1641671331888,1.69472565,133.8,133.76,27.66479]
[1641671332289,1.69472565,133.78,133.77,4.24524765]
[1641671332488,5.9811241,133.76,133.72,15.11841113]
[1641671332690,25.69472565,133.73,133.68,81.88087852]
[1641671332889,11.18111155,133.69,133.68,3.4950011]
[1641671333089,13.18087627,133.69,133.66,103.37077638]
[1641671333289,1.69472565,133.67,133.66,103.37077638]
[1641671333489,4.0,133.67,133.66,103.37077638]
[1641671333689,59.32958,133.67,133.66,91.05077638]
[1641671333890,56.78643256,133.67,133.66,84.33077638]
[1641671334091,29.12164256,133.67,133.66,84.33077638]
[1641671334291,29.12164256,133.67,133.58,4.0]
[1641671334492,29.12164256,133.67,133.63,1.87]
[1641671334691,29.12164256,133.67,133.62,1.87]
[1641671334891,1.45685256,133.66,133.59,4.24967643]
[1641671335091,1.45685256,133.66,133.6,1.87]
[1641671335392,1.45685256,133.66,133.59,4.24967643]
[1641671335591,1.45685256,133.66,133.59,8.24967643]
[1641671335792,1.45685256,133.66,133.61,4.24967643]
[1641671336791,1.45685256,133.66,133.62,2.84161598]
[1641671337592,1.45685256,133.66,133.63,4.24967643]
[1641671337993,1.45685256,133.66,133.6,4.24967643]
[1641671338191,1.45685256,133.66,133.6,8.24967643]
[1641671338391,27.66479,133.68,133.61,5.87]
[1641671338792,27.66479,133.68,133.62,4.24967643]
[1641671339092,4.0,133.66,133.62,4.24967643]
[1641671339292,5.45684882,133.67,133.62,4.24967643]
[1641671339692,27.66479,133.63,133.62,4.24967643]
[1641671339892,27.66479,133.63,133.58,4.24967643]
[1641671340897,33.50379,133.63,133.58,4.24967643]
[1641671341994,33.50379,133.63,133.61,4.0]
[1641671342194,27.66479,133.68,133.61,4.0]
[1641671342394,27.66479,133.68,133.62,4.0]
[1641671342595,27.66479,133.68,133.63,1.87]
[1641671342894,19.16511486,133.68,133.63,4.24967643]
[1641671343095,4.0,133.67,133.63,4.24967643]
[1641671343296,5.45699755,133.67,133.63,4.24967643]
[1641671343495,1.45699755,133.67,133.63,4.24967643]
[1641671343695,27.66479,133.65,133.63,4.24967643]
[1641671343994,1.45699755,133.66,133.63,4.0]
[1641671344195,14.65866706,133.73,133.63,4.0]
[1641671344393,14.65866706,133.73,133.64,1.87]
[1641671344594,14.65866706,133.73,133.65,4.0]
[1641671344797,7.47971128,133.73,133.65,4.0]
[1641671344994,7.17713601,133.76,133.65,4.0]
[1641671345194,4.0,133.75,133.66,1.869]
[1641671345394,7.47943156,133.74,133.66,1.869]
[1641671345597,12.49827794,133.74,133.67,4.24849689]
[1641671345795,27.66479,133.7,133.67,4.24849689]
[1641671345995,31.66479,133.7,133.67,4.24849689]
[1641671346195,31.66479,133.7,133.67,9.689e-05]
[1641671346406,27.66479,133.7,133.67,9.689e-05]
[1641671346597,27.66479,133.7,133.61,1.869]
[1641671346797,27.66479,133.7,133.61,5.869]
[1641671346997,7.48278958,133.68,133.61,1.869]
[1641671347199,7.48278958,133.68,133.6,65.8332]
[1641671347397,1.44322346,133.67,133.62,4.24982652]
[1641671347797,27.66479,133.66,133.61,4.24982652]
[1641671347997,1.44322346,133.67,133.62,4.0]
[1641671348397,27.66479,133.7,133.63,5.87]
[1641671348597,27.66479,133.7,133.63,4.0]
[1641671348799,1.44260404,133.69,133.64,4.24982652]
[1641671349198,1.44260404,133.69,133.68,4.32967037]
[1641671349398,1.44260404,133.69,133.63,4.24982652]
[1641671349799,1.44260404,133.69,133.68,4.24982652]
[1641671350199,1.44260404,133.69,133.62,4.24982652]
[1641671350998,11.48250963,133.68,133.61,4.24982652]
[1641671351200,4.0,133.67,133.61,4.24982652]
[1641671351400,4.0,133.66,133.61,4.24982652]
[1641671351601,13.79160404,133.67,133.58,4.24982652]
[1641671351801,27.66479,133.61,133.58,4.24982652]
[1641671352001,27.66479,133.63,133.58,4.24982652]
[1641671352701,27.66479,133.63,133.58,8.24982652]
[1641671352901,7.48250963,133.68,133.59,1.871]
[1641671353101,7.1805003,133.7,133.61,4.0]
[1641671353302,7.1805003,133.7,133.62,1.87]
[1641671353501,7.4811102,133.71,133.62,5.87]
[1641671353701,7.4811102,133.71,133.64,4.0]
[1641671353901,7.4811102,133.71,133.64,31.66479]
[1641671354101,2.29294287,133.7,133.64,31.66479]
[1641671354302,2.29294287,133.7,133.64,27.66479]
[1641671354503,2.29294287,133.7,133.65,4.24982652]
[1641671355102,6.29294287,133.7,133.65,4.24982652]
[1641671355303,4.0,133.69,133.65,4.24982652]
[1641671355807,29.95773287,133.68,133.65,4.24982652]
[1641671356202,29.95773287,133.68,133.61,4.24982652]
[1641671356404,2.29294287,133.67,133.61,6.11982652]
[1641671356603,2.29294287,133.67,133.61,10.11982652]
[1641671356802,2.29294287,133.67,133.62,4.24982652]
[1641671357003,2.29294287,133.67,133.65,4.0]
[1641671357204,34.84386923,133.73,133.62,4.24982652]
[1641671357205,27.66479,133.73,133.66,4.0]
[1641671357404,7.47803328,133.76,133.62,4.24982652]
[1641671357405,7.47803328,133.76,133.68,4.0]
[1641671357707,11.47663551,133.79,133.7,4.0]
[1641671357907,11.47663551,133.79,133.71,31.66479]
[1641671358105,11.47663551,133.79,133.71,36.42779]
[1641671358307,4.0,133.78,133.71,36.42779]
[1641671358505,7.47803328,133.76,133.67,1.869]
[1641671358707,7.47971128,133.73,133.72,4.24793054]
[1641671358906,17.46227338,133.73,133.72,4.24793054]
[1641671359207,5.98347266,133.71,133.66,15.64820725]
[1641671359407,4.0,133.69,133.66,15.64820725]
[1641671359807,27.66479,133.68,133.66,15.64820725]
[1641671360206,4.0,133.67,133.59,1.87]
[1641671360406,27.66479,133.68,133.59,1.87]
[1641671360607,27.66479,133.68,133.58,43.31299725]
[1641671360810,2.87993877,133.66,133.59,1.87]
[1641671361208,2.87993877,133.66,133.61,15.64820725]
[1641671361407,2.87993877,133.67,133.61,15.64820725]
[1641671361907,6.87993877,133.67,133.61,15.64820725]
[1641671362108,2.87993877,133.67,133.61,15.64820725]
[1641671362309,2.87993877,133.66,133.61,15.64820725]
[1641671362710,2.87993877,133.67,133.61,15.64820725]
[1641671363510,2.87993877,133.67,133.64,15.64820725]
[1641671364709,11.17944869,133.72,133.64,19.64820725]